Cogmind - Beta 16.1 @@@ ROGUE MODE // 2026.04.29 @ 08:38:47 Player: Lazz Result: Destroyed by U1-3P4(R) with Subdweller Laser Performance ------------- Evolutions (0) 0 Regions Visited (2) 400 Robots Destroyed (9) 45 Value Destroyed (160) 160 Prototype IDs (0) 0 Alien Tech Used (0) 0 Bonus (0) 0 TOTAL SCORE: 605 Bonus ------- None Cogmind --------- Core Integrity 0/250 Matter 256/300 Energy 16/100 System Corruption 0% Temperature Cool (6) Movement Rolling (80) Location -10/Subcaves Parts ------- > --- POWER (1) -------- (None) > --- PROPULSION (2) --- Wheel Wheel > --- UTILITY (2) ------ Small Storage Unit Subdweller Optics > --- WEAPON (2) ------- Small Laser > --- INVENTORY (8) ---- Medium Matter Pod (100) Machine Analyzer Improved Terrain Scanner Seismic Detector Peak State ------------ > --- POWER ------------ Ion Engine > --- PROPULSION ------- Aluminum Leg > --- UTILITY ---------- Small Storage Unit Subdweller Optics > --- WEAPON ----------- Battle Rifle Subdweller Machine Gun > --- INVENTORY -------- Wheel Wheel Medium Matter Pod Machine Analyzer Improved Terrain Scanner Seismic Detector Small Laser Mining Laser [Rating: 10] Favorites ----------- Power Ion Engine Engine Ion Engine Propulsion Aluminum Leg Leg Aluminum Leg Wheel Wheel Utility Small Storage Unit Device Seismic Detector Storage Small Storage Unit Weapon Medium Laser Energy Gun Medium Laser Ballistic Gun Assault Rifle Special Weapon Mining Laser Build | -11 -10 -10 ------- Run | Yrd Mat Sub Slots Evolved . | . . . Power . | . . . Propulsion . | . . . Utility . | . . . Weapon . | . . . Parts Attached 14 | 7 . 7 Power 1 | 1 . . Engine 1 | 1 . . Core . | . . . Reactor . | . . . Propulsion 4 | 2 . 2 Treads . | . . . Leg 2 | 2 . . Wheel 2 | . . 2 Hover . | . . . Flight . | . . . Utility 3 | 2 . 1 Device 2 | 1 . 1 Storage 1 | 1 . . Processor . | . . . Hackware . | . . . Protection . | . . . Artifact . | . . . Weapon 6 | 2 . 4 Energy Gun 2 | 1 . 1 Energy Cannon . | . . . Ballistic Gun 3 | 1 . 2 Ballistic Cannon . | . . . Launcher . | . . . Special Weapon 1 | . . 1 Impact Weapon . | . . . Slashing Weapon . | . . . Piercing Weapon . | . . . Special Melee Weapon . | . . . Unidentified Prototypes . | . . . Parts Lost 7 | . . 7 Power 1 | . . 1 Propulsion 2 | . . 2 Utility 1 | . . 1 Weapon 3 | . . 3 Highest Loss Streak 5 | . . 5 To Critical Strikes . | . . . Average Backups 6 | 2 6 7 Power . | . . . Propulsion 1 | . 1 1 Utility 3 | . 3 3 Weapon 1 | 1 2 1 Tool/Special . | . . . Unused Backups 4 | . . 4 Power . | . . . Propulsion . | . . . Utility 4 | . . 4 Weapon . | . . . Tool/Special . | . . . Average Slot Usage (%) 91 | . 100 87 Engine 13 | . 14 12 Leg 21 | . 28 18 Device 13 | . 14 12 Storage 14 | . 14 14 Energy Gun 9 | . 14 6 Ballistic Gun 18 | . 14 20 Peak Build Rating 10 | 7 7 10 Average Rating 7 | 6 7 8 On Entrance 4 | . 7 7 Avg Prop Armor Cover (%) . | . . . Naked Turns . | . . . Heaviest Build 18 | 15 15 18 Greatest Support 20 | 20 20 20 Greatest Overweight (x) 4 | 2 . 4 Average Overweight (x) . | . . . Largest Inventory Capacity 8 | 8 8 8 Average Capacity 7 | 7 8 8 Most Carried 8 | 6 6 8 Average Carried 6 | 2 6 7 Final Capacity 8 | 8 8 8 Final Carried 6 | 6 6 4 Class Distribution -------------------- 100% | Mutant Dominant Class ---------------- Mutant | -10/Materials Mutant | -10/Subcaves Resources | -11 -10 -10 ----------- Run | Yrd Mat Sub Matter Collected 451 | 318 . 133 Remotely . | . . . Salvage Created 291 | 144 . 147 Parts 22 | 13 . 9 Haulers Intercepted . | . . . Recyclers Shooed . | . . . Parts Field Recycled . | . . . Retrieved Matter . | . . . Parts Self-Destructed 3 | . . 3 Prevented . | . . . Parts Restored . | . . . Kills | -11 -10 -10 ------- Run | Yrd Mat Sub Combat Hostiles Destroyed 3 | . . 3 Guns 3 | . . 3 Classes Destroyed 5 | 3 . 2 Worker 1 | 1 . . Tunneler 4 | 4 . . Recycler 1 | 1 . . Sentry 1 | . . 1 Subdweller 2 | . . 2 Best Kill Streak 3 | 3 . 2 Combat Bots Only 2 | . . 2 Max Kills in Single Turn 1 | 1 . 1 Gunslinging . | . . . Exploded . | . . . Melee . | . . . Uniques/NPCs Destroyed . | . . . Combat | -11 -10 -10 -------- Run | Yrd Mat Sub Hostile Shots Fired 83 | . . 83 Missed 31 | . . 31 Hits 52 | . . 52 Projectile 52 | . . 52 Critical Strikes 1 | . . 1 Damage Taken 1047 | . . 1047 Core 267 | . . 267 Absorbed by Shields . | . . . Core Remaining (%) 100 | 100 . . Volleys Fired 33 | 10 . 23 Largest 2 | 2 . 2 Hottest 100 | 70 . 100 Shots Fired 56 | 20 . 36 Gun 55 | 20 . 35 Cannon . | . . . Launcher . | . . . Special 1 | . . 1 Kinetic 30 | 10 . 20 Thermal 26 | 10 . 16 Explosive . | . . . Electromagnetic . | . . . Robot Hit Streak 6 | 5 . 6 Robot Miss Streak 2 | 2 . 2 Penetration Max . | . . . Secondary Targets . | . . . Shots Hit Robots 36 | 11 . 25 Core Hits 14 | 7 . 7 Critical Kills 1 | . . 1 Critical Parts Destroyed . | . . . Critical Strikes 2 | . . 2 Burn 1 | . . 1 Destroy 1 | . . 1 Melee Attacks . | . . . Impact . | . . . Slashing . | . . . Piercing . | . . . Sneak Attacks . | . . . Combat Hostiles . | . . . Follow-up Attacks . | . . . Damage Inflicted 472 | 132 . 340 Guns 472 | 132 . 340 Cannons . | . . . Explosions . | . . . Melee . | . . . Ramming . | . . . Kinetic 233 | 33 . 200 Thermal 239 | 99 . 140 Explosive . | . . . Electromagnetic . | . . . Impact . | . . . Slashing . | . . . Piercing . | . . . Highest Corruption . | . . . Average Corruption . | . . . Corruption Purged . | . . . Corruption Blocked . | . . . Overload Shots . | . . . Overflow Damage . | . . . Projectiles . | . . . Explosions . | . . . Melee . | . . . Knockbacks . | . . . Impact . | . . . Kinetic . | . . . Secondary . | . . . Self-Inflicted Damage . | . . . Shots . | . . . Rammed . | . . . Targets Rammed . | . . . Kicked . | . . . Crushed . | . . . Highest Temperature 27 | 27 . 10 Average Temperature 12 | 13 . 4 Received Heat Transfer 291 | . . 291 Siege Activations . | . . . Martial Activations . | . . . Shielding Activations . | . . . Robots Disrupted . | . . . Combat Hostiles . | . . . Robots Corrupted . | . . . Combat Hostiles . | . . . Parts Fried . | . . . Impact Corruptions . | . . . Robots Melted . | . . . Combat Hostiles . | . . . Parts Melted 1 | 1 . . Heat Transferred 754 | 296 . 458 Parts Sabotaged . | . . . Parts Stolen . | . . . Parts Stripped . | . . . Power Chain Reactions . | . . . Alert | -11 -10 -10 ------- Run | Yrd Mat Sub Maximum Alert Level . | . . . Low Security (%) 100 | 100 100 . Level 1 . | . . . Level 2 . | . . . Level 3 . | . . . Level 4 . | . . . Level 5 . | . . . High Security . | . . . Max Security . | . . . Peak Influence 15 | 15 . . Initial . | . . . Average . | 2 . . Influence Increases 50 | 30 . 20 Destroy 0b10 Robot/C 20 | . . 20 Destroy 0b10 Robot/NC 30 | 30 . . Influence Decreases 50 | 30 . 20 Time Decay 50 | 30 . 20 Squads Dispatched . | . . . Investigation . | . . . Extermination . | . . . Reinforcement . | . . . Assault . | . . . Garrison . | . . . Intercept . | . . . Searches Triggered . | . . . Construction Impeded . | . . . Haulers Reinforced . | . . . Active Scanning Responses . | . . . Cargo Convoy Interrupts . | . . . Stealth | -11 -10 -10 --------- Run | Yrd Mat Sub Distress Signals . | . . . Communications Jammed . | . . . Distress Signals . | . . . Times Spotted 5 | . . 5 Peak Tracking Total 2 | . . 2 Tactical Retreats . | . . . Traps | -11 -10 -10 ------- Run | Yrd Mat Sub Traps Triggered . | . . . Indirectly . | . . . Trap Hack Attempts . | . . . Triggered . | . . . Disarmed . | . . . Reprogrammed . | . . . Reused . | . . . Traps Extracted . | . . . Installed . | . . . Triggered . | . . . Machines | -11 -10 -10 ---------- Run | Yrd Mat Sub Machines Disabled . | . . . Max in Single Turn . | . . . Machines Repaired . | . . . Machines Dismantled . | . . . Machines Sabotaged . | . . . Overloaded Fab Kills . | . . . Hacking | -11 -10 -10 --------- Run | Yrd Mat Sub Machines Accessed . | . . . Terminals . | . . . Fabricators . | . . . Repair Stations . | . . . Recycling Units . | . . . Scanalyzers . | . . . Garrison Access . | . . . Total Hacks . | . . . Successful . | . . . Failed . | . . . Catastrophic . | . . . Database Lockouts . | . . . Manual . | . . . Terminals . | . . . Fabricators . | . . . Repair Stations . | . . . Recycling Units . | . . . Scanalyzers . | . . . Garrison Access . | . . . Terminal Hacks . | . . . Fabricator Hacks . | . . . Repair Station Hacks . | . . . Recycling Unit Hacks . | . . . Scanalyzer . | . . . Garrison Access Hacks . | . . . Unauthorized Hacks . | . . . Terminals . | . . . Fabricators . | . . . Repair Stations . | . . . Recycling Units . | . . . Scanalyzers . | . . . Garrison Access . | . . . Data Cores Recovered . | . . . Used . | . . . Hacking Detections . | . . . Full Trace Events . | . . . Feedback Events . | . . . Feedback Blocked . | . . . Robot Schematics Acquired . | . . . Robots Built . | . . . Authchips . | . . . Time . | . . . Total Robot Build Rating . | . . . Part Schematics Acquired . | . . . Parts Built . | . . . Authchips . | . . . Time . | . . . Total Part Build Rating . | . . . Part Studies Acquired . | . . . Parts Repaired . | . . . Time . | . . . Parts Recycled . | . . . Recycled Matter . | . . . Retrieved Matter . | . . . Retrieved Components . | . . . Parts Scanalyzed . | . . . Part Schematics Acquired . | . . . Parts Damaged . | . . . Bothacking | -11 -10 -10 ------------ Run | Yrd Mat Sub Used RIF Installer . | . . . Robots Hacked . | . . . Non-combat . | . . . Combat . | . . . Robot Hacks Applied . | . . . Relay Couplers Released . | . . . Fabnet Peak Effective % . | . . . Robots Rewired . | . . . Allies Hacked . | . . . Hacks Repelled . | . . . Allies | -11 -10 -10 -------- Run | Yrd Mat Sub Total Allies . | . . . Largest Group . | . . . Highest-Rated Group . | . . . Highest-Rated Ally . | . . . Total Orders . | . . . Ally Attacks . | . . . Total Damage . | . . . Kills . | . . . Allies Corrupted . | . . . Allies Melted . | . . . Intel | -11 -10 -10 ------- Run | Yrd Mat Sub Active Infowar (turns) 898 | 88 296 514 Optics 324 | . . 324 Seismic 574 | 88 296 190 Robot Analysis Total . | . . . Derelict Logs Recovered 1 | . . 1 Drone Launches . | . . . Drone Recoveries . | . . . Exploration | -11 -10 -10 ------------- Run | Yrd Mat Sub Turns Passed 1022 | 144 296 582 Spaces Moved 420 | 75 26 319 Core 12 | 10 . 2 Treads . | . . . Legs 405 | 65 26 314 Wheels 3 | . . 3 Hover . | . . . Flight . | . . . Fastest Speed 50 | 50 120 80 Average Speed 145 | 120 120 154 Slowest Speed 250 | 150 120 250 Overloaded Moves . | . . . Propulsion Burnouts . | . . . Robots Hopped . | . . . Potential Cave-ins . | . . . Cave-ins Triggered . | . . . Exploration Rate (%) 9 | 3 6 18 Regions Visited 2 Branch Regions 1 Pre-discovered Areas 1 | . . 1 Known Exits Taken . | . . . Unknown Exits Taken 2 | 1 1 . Scrap Searched . | . . . Spaces Dug . | . . . Terrain Destroyed . | . . . Melee . | . . . Projectile . | . . . AOE . | . . . Terrain Rammed . | . . . Walls Destroyed . | . . . Machines Disabled . | . . . Actions | -11 -10 -10 --------- Run | Yrd Mat Sub Total 769 | 105 291 373 Wait 292 | 8 266 18 Move 418 | 74 25 319 Hop . | . . . Pick Up 8 | 6 . 2 Fast Attach 9 | 7 . 2 Attach 4 | . . 4 Detach . | . . . Swap 2 | . . 2 Drop 3 | . . 3 Fire 33 | 10 . 23 Melee . | . . . Ram . | . . . Kick . | . . . Crush . | . . . Escape Stasis . | . . . Rewire . | . . . Trap . | . . . Miscellaneous . | . . . Route ------- -11/Scrapyard -10/Materials -10/Subcaves (discovered 1 exit: [*Mat]) History --------- Turn | Location | Event 13 | -11/Scrapyard | Discovered new exit (range 16) 145 | -11/Scrapyard | Entered Materials 317 | -10/Materials | Build established: Mutant 426 | -10/Materials | Discovered new exit (range 6) 441 | -10/Materials | Entered Subcaves 442 | -10/Subcaves | Approached by a straggling Scientist 480 | -10/Subcaves | Learned location of Mines (-10) 549 | -10/Subcaves | Discovered new exit (range 11) 986 | -10/Subcaves | Core integrity fell below 50% 997 | -10/Subcaves | Core integrity fell below 20% 1023 | -10/Subcaves | Destroyed by U1-3P4(R) with Subdweller Laser Last Messages --------------- 00678_ NP-Q86(R) affixes Scrap Shield Fragment to Scrap Shield. 00678_ NP-Q86(R) destroyed. 00681_ Acquired 19 matter. 00682_ Subatomizers dissect the Wheel. 00688_ Dropped Sub. Machine Gun. 00693_ Dropped Med. Laser. 00694_ Subatomizers dissect the Wheel. 00694_ Acquired Sub. Machine Gun. 00699_ Acquired Sub. Optics. 00701_ Acquired 30 matter. 00769_ Subatomizers dissect the Disposable Heat Sink. 00892_ OS-WTD(u) tweaks Twisted Machinery. 00973_ Ion Engine destroyed. 00983_ Aluminum Leg destroyed. 00984_ Sub. Machine Gun destroyed. 01000_ Battle Rifle destroyed. 01003_ Mining Laser destroyed. 01009_ E2-RX7(R) destroyed. Map ----- +----------------------------------------------------+ | ???????????????????????# " # #?????????????? | | ???????????????## ?????#" " #?????????????? | | ???????????????# ##??# "" #?????????????? | | ????????????????# ##" ""## #?????????????? | | ????????????????# " " #?????????????? | | ?????????????????# #?????????????? | | ?????????????????#"" #?????????????? | | ????????????????##""#### #?????????????? | | ????????????????#"""#??# #?????????????? | | ????????????????# #?## ###?????????????? | | ????????????????# ##### # #???????????????? | | ?????????????????# #??###### ##??????????????? | | ??????????????????# #?????## #??????????????? | | ??????????????????# ####### #??????????????? | | ??????????????????# # # #??????????????? | | ??????????????????# ##??????????????? | | ??????????????????## ### #???????????????? | | ???????????????????## ######" #???????????????? | | ????????????????????#" "#####" ##???????????????? | | ???????????????????###" ########?????????????? | | ??????????????????##"""" #?????????????? | | ??????????????????# """"""" """"##?????????????? | | ??????????????????## " " R "#####??????????????? | | ???????????????????## % ##??????????????????? | | ????????????????????## #???????????????????? | | ?????????????????????## @" ##???????????????????? | | ??????????????????????##"""##????????????????????? | | ???????????????????????#" #?????????????????????? | | ??????????????????????? " ????????????????????? | | ?????????????????????? "" """???????????????????? | | ?????????????????????# "###""#??????????????????? | | ?????????????????????###""??###??????????????????? | | ???????????????????????# #???????????????????????? | | ??????????????????????? ???????????????????????? | | ??????????????????????? ????????????????????????? | | ???????????????????????##????????????????????????? | | ?????????????????????????????????????????????????? | | ?????????????????????????????????????????????????? | | ?????????????????????????????????????????????????? | | ?????????????????????????????????????????????????? | | ?????????????????????????????????????????????????? | | ?????????????????????????????????????????????????? | | ?????????????????????????????????????????????????? | | ?????????????????????????????????????????????????? | | ?????????????????????????????????????????????????? | | ?????????????????????????????????????????????????? | | ?????????????????????????????????????????????????? | | ?????????????????????????????????????????????????? | | ?????????????????????????????????????????????????? | | ?????????????????????????????????????????????????? | +----------------------------------------------------+ Best States ------------- Heat Dissipation 25 Energy Generation 10 Energy Capacity 250 Matter Stores 300 Matter Capacity 300 Sight Range 21 Terrain Scan Density 10 Evasion (%) 55 Item Schematics ----------------- None Robot Schematics ------------------ None Fabricated ------------ Nothing Repaired ---------- Nothing Studied --------- None Alien Tech Used ----------------- None Achievements -------------- None Challenges ------------ None Game ------ Seed NetworkLinkedJammer Manual? 0 Play Time 00:08:11 Cumulative 177.1 hours Start 2026.04.29 @ 08:33:39 End 2026.04.29 @ 08:38:47 Sessions 1 Manual Loads 0 Difficulty Rogue Special Mode None Game No. 251 Rogue 251 Adventurer 0 Explorer 0 Win Type - Total 2 Types 1/0/0/1/0/0/0/0/0/0 Lore% 71 Gallery% 59 Achievement% 45 Wizard Run 0 Options --------- Layout 2 ASCII 0 Keyboard 0 Movement Mouse Keybinds 0 Fullscreen 1 Font 16/SmallcapsGlow Map View 25x24 Zoom Use 99% Tactical HUD 1 Map Filters NONE Filters NONE Steam SD RUN: 470eb3d8-5812-4a11-b77e-2c9f9152a5a7